bitfinex/quotes_ETHUSD_20250217
["timestamp","ask_amount","ask_price","bid_price","bid_amount"]
[1739785602119,0.0075,2738.1,2737.5,3.65285]
[1739785602320,0.0075,2738.1,2737.2,0.55]
[1739785602525,3.65218,2738.1,2737.5,3.65288]
[1739785602706,0.0075,2737.9,2737.5,3.65288]
[1739785602910,3.66002,2737.9,2737.3,3.65316]
[1739785603204,3.66002,2737.9,2737.5,3.65289]
[1739785603205,0.0075,2737.9,2737.5,3.65289]
[1739785604033,0.0075,2737.9,2737.5,3.65295]
[1739785604233,0.0075,2737.9,2737.3,3.65315]
[1739785604461,0.0075,2737.7,2737.1,7.48964]
[1739785604660,0.0075,2737.7,2737.1,7.48962]
[1739785604861,3.66022,2737.7,2737.2,3.65336]
[1739785605272,3.66022,2737.7,2737.1,7.48962]
[1739785605273,0.0075,2737.6,2737.1,7.48962]
[1739785605425,0.0075,2737.4,2737.1,0.005]
[1739785605625,0.0075,2737.4,2737.2,0.09430485]
[1739785605859,0.0075,2737.7,2737.4,3.65299]
[1739785606368,0.0075,2737.7,2737.5,3.74779275]
[1739785606660,0.0075,2737.7,2737.5,0.09487275]
[1739785607060,0.0075,2737.7,2737.2,3.65328]
[1739785607061,3.66021,2737.7,2737.2,3.65328]
[1739785607267,0.0075,2737.7,2737.6,0.09487275]
[1739785607423,0.739508,2737.7,2737.2,3.65327]
[1739785607629,3.66028,2737.7,2737.6,0.09487275]
[1739785607831,3.66028,2737.7,2737.2,3.65327]
[1739785608048,3.66028,2737.7,2737.6,0.09487275]
[1739785608255,3.66028,2737.7,2737.2,3.65327]
[1739785608444,3.66028,2737.7,2737.6,0.09487275]
[1739785608984,0.7776,2738.0,2737.2,3.65336]
[1739785609268,4.4299,2738.0,2737.6,0.09487275]
[1739785609434,3.65994,2737.9,2737.4,3.6531]
[1739785609634,3.6676,2737.8,2737.7,0.09487275]
[1739785609860,3.6676,2737.8,2737.1,3.65841]
[1739785609861,0.015,2737.7,2737.3,3.65318]
[1739785610061,0.015,2737.7,2737.1,0.005]
[1739785610263,3.66772,2737.7,2737.4,0.09552508]
[1739785610465,3.66772,2737.7,2737.1,3.65843]
[1739785610651,3.66772,2737.7,2737.5,0.09552508]
[1739785610837,3.65308,2737.5,2737.1,0.005]
[1739785611164,0.0075,2737.4,2737.1,0.005]
[1739785611534,0.0075,2737.2,2737.1,0.005]
[1739785611960,0.0075,2737.2,2737.1,3.6585]
[1739785612279,3.66042,2737.6,2737.2,3.65326]
[1739785612280,0.0075,2737.5,2737.2,3.65326]
[1739785612579,0.0075,2737.3,2737.1,0.005]
[1739785612774,3.66836,2737.2,2737.1,0.005]
[1739785612975,0.0075,2737.2,2737.1,0.005]
[1739785614574,3.66836,2737.2,2737.1,0.005]
[1739785614778,4.035946,2737.2,2737.1,0.005]
[1739785615644,4.852446,2737.2,2737.1,0.005]
[1739785620217,4.852446,2737.2,2737.1,0.10090897]
[1739785620521,4.852446,2737.2,2737.1,0.005]
[1739785620906,14.001446,2737.2,2737.1,0.005]
[1739785621418,4.852446,2737.2,2737.1,0.005]
[1739785621596,5.162446,2737.2,2737.1,0.005]
[1739785621996,5.162446,2737.2,2737.1,0.10175372]
[1739785622200,5.162446,2737.2,2737.1,0.005]
[1739785622409,5.162446,2737.2,2737.1,0.10175372]
[1739785623425,0.8315,2737.2,2737.1,0.10175372]
[1739785623614,0.0075,2737.2,2737.1,3.75525372]
[1739785624186,0.0075,2737.2,2737.1,0.10175372]
[1739785624591,3.66086,2737.2,2737.1,0.10175372]
[1739785624805,1.16969186,2737.2,2737.1,0.10175372]
[1739785625128,4.83055186,2737.2,2737.1,0.10175372]
[1739785626330,5.60625186,2737.2,2737.1,0.005]
[1739785627143,5.60625186,2737.2,2737.1,0.10175372]
[1739785627705,5.60625186,2737.2,2737.1,0.005]
[1739785627903,5.60625186,2737.2,2737.1,0.10175372]
[1739785628341,0.015,2737.2,2737.1,0.10175372]
[1739785628752,0.0075,2737.2,2737.1,0.10175372]
[1739785629926,0.0075,2737.2,2737.1,3.75525372]
[1739785630653,0.0075,2737.2,2737.1,0.10175372]
[1739785630852,3.66086,2737.2,2737.1,0.10175372]
[1739785631235,0.0075,2737.2,2737.1,0.10175372]
[1739785631748,0.38108,2737.2,2737.1,0.10175372]
[1739785632526,4.03444,2737.2,2737.1,0.10175372]
[1739785634251,0.38108,2737.2,2737.1,0.10175372]
[1739785634438,0.0075,2737.2,2737.1,0.10175372]
[1739785637472,0.0075,2737.2,2737.1,3.75525372]
[1739785638175,0.0075,2737.2,2737.1,0.10175372]
[1739785638970,3.66086,2737.2,2737.1,0.10175372]
[1739785639289,0.0075,2737.2,2737.1,0.10175372]
[1739785639959,3.66836,2737.2,2737.1,0.005]
[1739785640159,3.66836,2737.2,2737.1,0.10174604]
[1739785640486,0.015,2737.2,2737.1,0.10174604]
[1739785640664,3.66836,2737.2,2737.1,0.10174604]
[1739785640987,0.015,2737.2,2737.1,0.10174604]
[1739785641152,3.66836,2737.2,2737.1,0.10174604]
[1739785641349,4.400519,2737.2,2737.1,0.10174604]
[1739785642587,4.400519,2737.2,2737.1,0.005]
[1739785642748,4.400519,2737.2,2737.1,0.10178447]
[1739785643574,14.342819,2737.2,2737.1,0.10178447]
[1739785643779,14.342819,2737.2,2737.1,0.005]
[1739785645303,17.342819,2737.2,2737.1,0.005]
[1739785645599,0.015,2736.1,2735.7,4.6186342]
[1739785645892,0.015,2735.9,2735.7,0.1484442]
[1739785646094,0.015,2735.9,2735.8,0.0932171]
[1739785646301,3.6701,2735.9,2735.8,0.0932171]
[1739785646711,3.66273,2735.8,2735.7,0.1484442]
[1739785647016,3.66273,2735.8,2735.7,0.23493078]
[1739785647199,4.82355353,2735.8,2735.7,0.23493078]
[1739785647353,4.82355353,2735.8,2735.7,0.1484442]
[1739785648258,1.47032353,2735.8,2735.7,0.1484442]
[1739785648459,5.12555353,2735.8,2735.7,0.23616051]
[1739785648667,0.015,2735.8,2735.7,0.23616051]
[1739785648867,0.015,2735.8,2735.7,0.1484442]
[1739785649100,3.67023,2735.8,2735.7,0.23616051]
[1739785649615,0.015,2735.8,2735.7,0.23616051]
[1739785649816,0.0075,2735.8,2735.7,3.89153051]
[1739785650612,0.0075,2735.8,2735.7,0.23616051]
[1739785652120,0.0075,2735.8,2735.7,0.1484442]
[1739785652282,0.015,2735.8,2735.7,0.23616051]
[1739785653017,4.037227,2735.8,2735.7,0.23616051]
[1739785653622,4.037227,2735.8,2735.7,0.1484442]
[1739785654906,13.191227,2735.8,2735.7,0.1484442]
[1739785655359,20.4440323,2735.8,2735.7,0.1484442]
[1739785655969,17.001727,2735.8,2735.7,4.2e-06]
[1739785656251,0.015,2734.7,2734.4,0.79]
[1739785656572,0.015,2734.7,2733.6,3.65815]
[1739785656573,3.65721,2734.4,2734.1,0.7715]
[1739785656707,0.0075,2734.3,2733.8,4.42928]
[1739785657110,0.015,2734.1,2733.4,3.65834]
[1739785657267,0.015,2734.1,2733.6,3.65813]
[1739785657466,0.0075,2734.1,2733.9,0.7903]
[1739785657625,0.015,2734.2,2733.9,0.7903]
[1739785657821,3.67238,2734.2,2733.6,0.7903]
[1739785658021,4.039618,2734.2,2733.6,0.7903]
[1739785658235,0.382238,2734.2,2733.7,3.65804]
[1739785658571,0.382238,2734.2,2733.6,0.7903]
[1739785658853,0.382238,2734.2,2733.7,3.65796]
[1739785659156,4.039648,2734.2,2733.6,0.7903]
[1739785659373,0.015,2734.0,2733.6,0.7903]
[1739785659574,0.015,2734.0,2733.5,3.65823]
[1739785659748,0.015,2734.0,2733.3,4.41962]
[1739785659749,3.67274,2734.0,2733.3,4.41962]
[1739785659965,0.015,2733.8,2733.3,4.41962]
[1739785660130,0.015,2733.7,2733.3,0.7611]
[1739785660329,0.0075,2733.7,2733.3,3.7611]
[1739785660534,0.0075,2733.7,2733.6,3.65817]
[1739785660955,0.015,2734.1,2733.6,3.65817]
[1739785661152,0.015,2734.1,2733.5,3.65831]
[1739785661486,0.5281158,2734.1,2733.6,3.65806]
[1739785661985,0.5281158,2734.1,2733.8,3.65789]
[1739785662136,0.5281158,2734.1,2733.6,3.65806]
[1739785662326,0.5281158,2734.1,2733.7,3.65795]
[1739785662532,0.015,2734.1,2733.7,3.65795]
[1739785662989,0.015,2734.1,2733.8,3.65787]
[1739785663132,0.301,2734.7,2734.2,3.65733]
[1739785663688,3.67185,2734.6,2734.1,3.65748]
[1739785663887,0.491518,2734.6,2734.3,3.65722]
[1739785664091,1.11,2735.1,2734.1,0.55]
[1739785664389,4.76621,2735.1,2734.5,3.65688]
[1739785664545,0.015,2734.8,2734.3,3.65714]
[1739785664789,0.015,2734.8,2734.4,3.65703]
[1739785664972,1.11,2735.1,2734.6,3.65672]
[1739785665174,1.11,2735.1,2734.6,0.7618]
[1739785665175,0.301,2735.1,2734.6,0.7618]
[1739785665419,0.015,2735.0,2734.9,3.65631]
[1739785666135,0.015,2735.0,2734.6,0.7618]
[1739785666282,0.015,2735.0,2734.9,0.08553837]
[1739785666482,0.015,2735.0,2734.6,4.41852]
[1739785666682,0.015,2735.0,2734.9,0.08553837]
[1739785666914,0.015,2735.0,2734.8,3.65656]
[1739785667134,0.015,2735.0,2734.9,3.74197837]
[1739785667487,0.015,2735.3,2734.9,0.08553837]
[1739785667735,0.43747053,2735.3,2734.9,0.08553837]
[1739785668088,0.43747053,2735.3,2734.9,3.74192837]
[1739785668284,0.42247053,2735.3,2734.9,0.08553837]
[1739785668531,0.015,2735.0,2734.4,3.65697]
[1739785668733,0.015,2735.0,2734.8,3.6565]
[1739785669034,0.015,2735.0,2734.8,3.65646]
[1739785669182,0.42247053,2735.3,2734.8,3.65646]
[1739785669384,0.015,2735.1,2734.8,3.65646]
[1739785669591,0.015,2735.1,2734.9,3.65633]
[1739785670000,0.015,2735.1,2734.7,3.65669]
[1739785671442,0.015,2735.1,2734.7,3.65663]
[1739785671736,0.015,2735.1,2734.8,3.65654]
[1739785672021,0.47279546,2735.1,2734.7,3.65663]
[1739785672888,0.47279546,2735.1,2734.3,3.65719]
[1739785673087,0.0075,2734.9,2734.3,3.65719]
[1739785673288,0.0075,2734.9,2734.6,3.65675]
[1739785673516,0.0075,2735.0,2734.7,3.65666]
[1739785673830,0.39826008,2735.0,2734.8,3.65647]
[1739785674119,0.0075,2735.1,2734.9,3.65643]
[1739785674319,0.0075,2735.1,2734.8,3.65647]
[1739785674524,0.0075,2735.1,2735.0,3.6563]
[1739785674817,0.0075,2735.2,2734.2,0.7616]
[1739785674818,0.015,2735.2,2734.2,0.7616]
[1739785675030,0.015,2735.2,2734.9,3.65642]
[1739785675233,0.015,2735.2,2734.8,3.65652]
[1739785675431,0.50107205,2735.2,2734.7,3.65664]
[1739785675635,0.015,2735.2,2734.8,3.65656]
[1739785675951,0.015,2735.2,2734.9,3.65635]
[1739785676300,0.015,2735.2,2735.1,3.65617]
[1739785676715,0.015,2735.2,2734.9,3.65633]
[1739785676924,0.015,2735.2,2735.0,3.65619]
[1739785677236,0.015,2735.2,2735.1,3.65617]
[1739785677441,0.8322,2735.9,2734.9,0.55]
[1739785677643,0.8322,2735.9,2735.5,3.65555]
[1739785677936,0.015,2735.8,2735.5,7.31111]
[1739785678093,0.015,2735.8,2735.5,3.65555]
[1739785678512,0.015,2735.8,2735.1,3.0]
[1739785678707,0.015,2735.8,2735.5,3.65555]
[1739785679240,0.015,2735.8,2735.4,3.65574]
[1739785679438,0.015,2735.8,2735.3,3.65584]
[1739785679797,0.015,2735.5,2735.0,3.65621]
[1739785680061,0.015,2735.5,2734.8,0.7621]
[1739785680062,0.382058,2735.5,2734.9,3.65636]
[1739785680214,4.037768,2735.5,2734.9,3.65635]
[1739785680415,4.037768,2735.5,2734.7,3.65662]
[1739785680416,0.0075,2735.2,2734.7,3.65662]
[1739785680671,0.0075,2735.2,2735.0,0.08582295]
[1739785680812,0.0075,2735.1,2734.9,3.65634]
[1739785681164,0.0075,2735.1,2735.0,3.74204603]
[1739785681341,0.015,2735.2,2735.0,0.08574603]
[1739785681542,0.015,2735.1,2735.0,0.08574603]
[1739785681744,0.7779,2735.0,2734.5,3.65689]
[1739785681926,0.0075,2734.6,2734.1,3.65738]
[1739785682262,0.0075,2734.5,2734.1,3.65738]
[1739785682441,0.0075,2734.5,2733.9,3.65771]
[1739785682649,0.0075,2734.3,2733.9,3.65771]
[1739785682847,0.015,2734.1,2733.6,3.65813]
[1739785683012,3.4573053,2734.1,2733.6,3.65813]
[1739785683218,3.4573053,2734.1,2733.2,0.8146]
[1739785683414,3.4573053,2734.1,2733.5,3.65822]
[1739785683415,3.7553053,2734.1,2733.5,3.65822]
[1739785683729,0.015,2733.8,2733.4,3.65836]
[1739785683908,0.015,2733.8,2733.3,7.31698]
[1739785684109,0.015,2733.8,2733.3,3.65848]
[1739785684362,0.015,2733.8,2733.5,3.6583]
[1739785685067,0.015,2733.8,2733.7,3.65804]
[1739785685365,0.015,2733.8,2733.5,3.6583]
[1739785685664,0.015,2733.8,2733.7,3.65804]
[1739785685964,0.015,2733.8,2733.5,3.65822]
[1739785686269,0.015,2733.8,2733.5,3.65821]
[1739785686413,0.015,2733.8,2733.3,3.65854]
[1739785686613,0.015,2733.6,2733.1,3.65873]
[1739785686818,0.015,2733.6,2733.2,3.6587]
[1739785687023,0.015,2733.6,2733.3,3.65848]
[1739785687214,0.015,2733.8,2733.4,3.65834]
[1739785687622,0.015,2733.8,2733.5,3.65825]
[1739785687869,0.015,2733.8,2733.7,3.65804]
[1739785688070,0.7878,2734.3,2734.0,3.6576]
[1739785688252,0.34573053,2734.5,2734.0,3.6576]
[1739785688456,0.34573053,2734.5,2734.2,3.65733]
[1739785688755,0.7908,2735.0,2734.7,3.65662]
[1739785689135,0.7908,2735.0,2734.9,3.65644]
[1739785689341,0.297,2735.2,2735.0,3.65629]
[1739785689636,0.015,2735.0,2734.5,3.65689]
[1739785689836,0.015,2734.8,2734.3,3.65724]
[1739785690380,4.023577,2734.9,2733.8,3.65786]
[1739785690381,3.67184,2734.6,2734.0,3.65756]
[1739785690974,0.015,2734.6,2734.4,3.65703]
[1739785691180,0.0075,2734.6,2734.5,3.65697]
[1739785691389,0.8238,2735.1,2734.7,3.65665]
[1739785691666,0.015,2735.0,2734.5,3.65697]
[1739785692046,0.015,2735.0,2734.7,3.65663]
[1739785692246,0.015,2735.0,2734.6,0.07822494]
[1739785692427,3.67138,2735.0,2734.4,3.6571]
[1739785692630,0.015,2734.8,2734.5,0.07822494]
[1739785693248,0.0075,2734.9,2734.5,3.73509494]
[1739785693870,0.0075,2734.8,2734.5,0.07822494]
[1739785694581,0.015,2734.8,2734.5,0.07822494]
[1739785694782,0.015,2734.8,2734.6,3.65674]
[1739785694930,0.015,2734.8,2734.7,3.6567]
[1739785695580,0.8238,2735.1,2734.7,3.73484051]
[1739785695925,0.015,2735.0,2734.7,0.07814051]
[1739785696129,0.015,2735.0,2734.8,3.65646]
[1739785696584,0.015,2735.0,2734.9,3.73458051]
[1739785696761,0.296,2735.3,2735.0,3.65628]
[1739785697075,3.8041,2735.5,2735.0,3.65628]
[1739785697076,0.0075,2735.2,2735.0,3.65628]
[1739785697280,0.0075,2735.2,2735.1,0.07814051]
[1739785697429,0.0075,2735.2,2734.8,3.65645]
[1739785697784,0.0075,2735.0,2734.9,0.07793331]
[1739785698161,3.6713,2735.0,2734.9,0.07793331]
[1739785698361,0.015,2735.0,2734.9,0.07793331]
[1739785698683,4.4245,2735.0,2734.9,0.07793331]
[1739785698827,0.015,2734.5,2734.1,3.65741]
[1739785699023,0.0075,2734.3,2734.2,0.07777985]
[1739785699529,0.0075,2734.3,2734.1,3.6575]
[1739785699731,0.0075,2734.3,2734.2,0.07797168]
[1739785700178,0.015,2734.6,2734.5,3.65697]
[1739785700391,0.0075,2734.6,2734.5,3.65697]
[1739785700545,5.131813,2735.4,2734.9,3.65643]
[1739785700725,4.60151773,2735.3,2734.7,7.3133]
[1739785700926,0.015,2735.2,2735.0,0.07820959]
[1739785701180,3.67111,2735.2,2734.7,3.65657]
[1739785701336,0.015,2735.2,2735.1,0.07820959]
[1739785701532,0.015,2735.2,2734.8,3.65655]
[1739785701732,0.58768577,2735.2,2734.8,3.65655]
[1739785701979,0.58768577,2735.2,2734.9,0.07820959]
[1739785702280,0.015,2735.2,2734.9,0.07820959]
[1739785702425,0.015,2735.2,2735.1,3.65617]
[1739785702632,0.015,2735.2,2735.1,3.73414168]
[1739785703191,0.015,2735.2,2735.1,0.07797168]
[1739785703526,0.015,2735.2,2734.9,3.65632]
[1739785703727,0.015,2735.2,2735.1,0.07784123]
[1739785703980,0.015,2735.2,2734.8,3.65644]
[1739785704275,0.015,2735.2,2734.9,3.65636]
[1739785704474,0.015,2735.2,2734.9,0.07784123]
[1739785704686,0.015,2735.2,2735.0,3.65627]
[1739785704877,0.015,2735.2,2735.1,3.65617]
[1739785705037,0.015,2735.2,2735.1,3.73401123]
[1739785705236,0.015,2735.2,2735.1,0.07784123]
[1739785705480,0.015,2735.2,2735.1,3.73401123]
[1739785705774,0.015,2735.2,2735.1,0.07784123]
[1739785706151,0.015,2735.2,2734.9,3.65636]
[1739785706358,0.015,2735.2,2735.1,0.07784123]
[1739785706554,0.015,2735.2,2734.9,3.65636]
[1739785706746,0.463517,2735.2,2735.1,0.07784123]
[1739785706946,0.463517,2735.2,2734.9,3.65636]
[1739785707308,0.463517,2735.2,2735.0,3.65623]
[1739785707459,0.015,2735.2,2735.1,3.65617]
[1739785707792,0.8206,2735.8,2735.4,3.65566]
[1739785707960,4.47584,2735.8,2735.1,0.07755734]
[1739785708160,4.147494,2735.7,2735.1,7.31232]
[1739785708475,4.147494,2735.7,2735.0,0.7974]
[1739785708476,0.015,2735.7,2735.5,3.65554]
[1739785708950,0.015,2735.7,2735.6,0.07739623]
[1739785709380,0.015,2735.7,2735.6,3.73289623]
[1739785709935,0.015,2735.7,2735.6,0.07739623]
[1739785710893,0.015,2735.7,2735.4,7.31139]
[1739785711098,0.015,2735.7,2735.6,0.07739623]
[1739785711257,0.015,2735.7,2735.2,3.65594]
[1739785711461,0.015,2735.7,2735.6,0.07739623]
[1739785711662,0.8286,2735.6,2734.9,3.65634]
[1739785711891,3.67065,2735.5,2734.9,3.65634]
[1739785712058,3.65584,2735.4,2734.9,7.3127]
[1739785712260,3.65584,2735.4,2734.9,3.65634]
[1739785712261,0.015,2735.3,2734.9,3.65634]
[1739785713783,0.0075,2735.5,2734.9,3.65632]
[1739785713972,3.6558,2735.4,2734.9,3.65632]
[1739785714278,3.67071,2735.5,2734.9,3.65632]
[1739785714479,0.0075,2735.3,2734.9,3.65632]
[1739785714794,0.8266,2735.3,2734.9,3.65632]
[1739785715086,0.0075,2735.2,2734.8,3.65656]
[1739785715490,3.66366,2735.2,2734.7,4.44336]
[1739785715690,3.66366,2735.2,2734.6,3.65682]
[1739785715691,0.015,2734.9,2734.5,3.65686]
[1739785716197,0.015,2734.9,2734.4,6.65703]
[1739785716951,0.015,2734.9,2734.6,3.65684]
[1739785717404,0.015,2734.9,2734.5,3.65697]
[1739785717888,0.0075,2735.1,2734.8,3.65649]
[1739785718092,0.0075,2735.1,2734.6,3.65671]
[1739785718293,0.0075,2734.9,2734.5,3.65695]
[1739785718651,0.0075,2734.9,2734.6,3.65681]
[1739785718850,0.0075,2734.9,2734.7,3.65667]
[1739785719069,0.015,2735.1,2734.9,3.65642]
[1739785719273,0.0075,2735.1,2735.0,3.6563]
[1739785719470,0.8191,2735.3,2735.0,3.6563]
[1739785719471,0.015,2735.3,2735.0,3.6563]
[1739785719687,0.015,2735.3,2734.9,3.65642]
[1739785720002,0.484726,2735.3,2734.9,3.65635]
[1739785720502,0.0075,2735.3,2735.1,3.65613]
[1739785720682,4.47651,2735.6,2735.1,3.65613]
[1739785720887,0.015,2735.5,2735.1,3.65613]
[1739785721898,0.015,2735.5,2735.2,3.65594]
[1739785722256,0.015,2735.5,2735.1,3.6561]
[1739785722451,0.015,2735.5,2734.7,0.7728]
[1739785722656,0.0075,2735.3,2734.8,0.55]
[1739785723094,0.015,2735.5,2734.9,3.65634]
[1739785723279,0.015,2735.5,2735.1,3.65615]
[1739785723671,0.015,2735.5,2734.9,3.65634]
[1739785723873,0.015,2735.5,2734.8,0.55]
[1739785724081,0.015,2735.5,2735.1,3.65609]
[1739785724395,0.015,2735.5,2735.1,3.65616]
[1739785724892,0.493453,2735.5,2735.1,3.65607]
[1739785725093,0.015,2735.5,2735.3,3.65577]
[1739785725660,0.015,2735.5,2735.4,0.07743459]
[1739785726000,0.015,2735.5,2735.1,3.65607]
[1739785726179,0.015,2735.5,2735.4,0.07743459]
[1739785726703,0.015,2735.5,2735.1,7.31217]
[1739785726997,0.015,2735.5,2735.4,0.07743459]
[1739785727161,0.015,2735.5,2735.3,3.65589]
[1739785727363,0.015,2735.5,2735.4,0.07743459]
[1739785727571,3.67063,2735.5,2735.4,0.07743459]
[1739785727776,4.514645,2735.5,2735.4,0.07743459]
[1739785727994,4.514645,2735.5,2735.1,3.65616]
[1739785728199,4.514645,2735.5,2735.4,0.07743459]
[1739785728715,0.859015,2735.5,2735.1,3.6561]
[1739785729015,4.514765,2735.5,2735.4,0.07743459]
[1739785729218,4.514765,2735.5,2735.0,3.65618]
[1739785729421,4.514765,2735.5,2735.4,0.07743459]
[1739785729608,4.514765,2735.5,2735.0,3.65618]
[1739785729778,4.514765,2735.5,2735.4,0.07743459]
[1739785730113,0.859015,2735.5,2735.4,0.07743459]
[1739785730315,0.859015,2735.5,2735.2,3.65601]
[1739785730513,0.859015,2735.5,2735.4,0.07743459]
[1739785730715,0.859015,2735.5,2735.2,3.65601]
[1739785730918,0.015,2735.5,2735.4,0.07743459]
[1739785731124,0.015,2735.5,2735.4,3.65577]
[1739785731416,0.293,2735.7,2735.4,0.07743459]
[1739785731582,0.015,2735.6,2735.4,0.07743459]
[1739785732225,0.794,2735.9,2735.4,0.07743459]
[1739785732524,0.744906,2735.8,2735.5,3.65562]
[1739785732683,0.015,2735.7,2735.5,3.65562]
[1739785733022,0.015,2735.7,2735.6,0.07717377]
[1739785733518,0.0075,2735.7,2735.6,0.07717377]
[1739785733721,0.0075,2735.7,2735.4,3.6557]
[1739785734020,0.0075,2735.7,2735.6,0.07717377]
[1739785734216,0.0075,2735.7,2735.3,3.65582]
[1739785734217,0.0075,2735.8,2735.3,3.65582]
[1739785734420,6.65445,2736.4,2735.6,0.07717377]
[1739785734421,1.049,2736.2,2735.6,0.07717377]
[1739785734726,0.015,2736.0,2735.7,3.73247377]
[1739785735225,0.0075,2735.8,2735.7,0.07717377]
[1739785735624,0.0075,2735.7,2735.3,3.65582]
[1739785736425,3.65487,2736.1,2735.2,0.7965]
[1739785736732,4.125257,2736.1,2735.3,3.6558]
[1739785736943,0.015,2735.9,2735.5,3.65557]
[1739785737586,3.6701,2735.9,2735.5,3.65557]
[1739785737782,3.6701,2735.9,2735.3,3.65581]
[1739785738020,3.6701,2735.9,2735.3,4.139006]
[1739785738231,3.6701,2735.9,2735.4,3.65577]
[1739785738584,7.3253,2735.9,2735.4,3.65577]
[1739785738892,0.0075,2735.7,2735.3,3.65582]
[1739785739201,0.0075,2735.7,2735.4,3.65567]
[1739785739525,0.0075,2735.9,2735.5,3.65563]
[1739785739683,3.65499,2736.0,2735.3,3.65581]
[1739785739887,3.65499,2736.0,2735.2,3.65597]
[1739785739888,0.015,2735.6,2735.2,3.65597]
[1739785740486,0.015,2735.6,2735.3,3.65588]
[1739785740692,0.015,2735.6,2735.3,3.73305377]
[1739785740889,0.0075,2735.7,2735.4,3.65566]
[1739785741097,0.0075,2735.7,2735.5,3.65556]
[1739785741510,3.65485,2736.1,2735.6,7.38800377]
[1739785741803,3.65498,2736.0,2735.6,0.07717377]
[1739785742004,0.015,2735.9,2735.6,0.07717377]
[1739785742322,3.66247,2736.0,2735.6,0.07717377]
[1739785742528,0.015,2735.7,2735.6,0.07717377]
[1739785742731,0.015,2735.7,2735.2,0.7967]
[1739785742732,0.015,2735.7,2735.3,3.65583]
[1739785742930,0.015,2735.7,2735.6,0.07683631]
[1739785743095,0.015,2735.7,2735.3,3.65583]
[1739785743297,0.015,2735.7,2735.6,0.07683631]
[1739785743497,0.015,2735.7,2735.3,3.65583]
[1739785743498,0.015,2735.7,2735.2,0.7967]
[1739785743694,4.037395,2735.7,2735.6,0.07683631]
[1739785743895,0.0075,2735.4,2734.7,3.65658]
[1739785744098,0.0075,2735.4,2734.8,3.65648]
[1739785744512,0.0075,2735.3,2734.9,3.65637]
[1739785744834,0.0075,2735.3,2734.7,7.3132]
[1739785744835,0.0075,2735.2,2734.7,7.3132]
[1739785745021,0.0075,2735.2,2734.7,3.65658]
[1739785745340,0.0075,2735.2,2734.8,3.65656]
[1739785745544,0.0075,2735.2,2734.7,3.65658]
[1739785746098,0.0075,2735.1,2734.7,3.65658]
[1739785746299,0.0075,2735.1,2734.5,3.65684]
[1739785746607,0.0075,2735.1,2734.6,3.65677]
[1739785746820,0.0075,2735.1,2734.7,3.6567]
[1739785746992,3.65571,2735.5,2734.9,7.31269]
[1739785746993,4.44561,2735.5,2734.9,7.31269]
[1739785747193,0.444561,2735.4,2734.9,7.31269]
[1739785747397,0.015,2735.3,2735.0,3.65629]
[1739785747623,0.015,2735.3,2734.6,4.20681]
[1739785747824,0.0075,2735.3,2735.0,7.31242]
[1739785748050,0.0075,2735.3,2735.0,3.65621]
[1739785748200,0.0075,2735.3,2735.1,3.65614]
[1739785748596,0.0075,2735.3,2735.0,3.65621]
[1739785748801,0.0075,2735.3,2735.2,3.65603]
[1739785749338,0.7899,2735.9,2735.5,3.65556]
[1739785749751,3.67032,2735.8,2735.3,3.6558]
[1739785750249,0.015,2735.8,2734.8,0.55]
[1739785750450,0.0075,2735.6,2734.8,2.44815261]
[1739785750607,0.0075,2735.6,2734.8,0.8066]
[1739785750608,3.66327,2735.4,2734.8,0.8066]
[1739785750804,0.0075,2735.4,2734.9,3.65631]
[1739785751158,7.10084607,2735.8,2735.2,3.65592]
[1739785751159,3.65542,2735.7,2735.2,3.65592]
[1739785751300,0.015,2735.7,2735.3,3.65581]
[1739785751503,0.487052,2735.7,2735.2,3.65592]
[1739785751754,0.015,2735.7,2735.1,3.0]
[1739785751905,0.015,2735.7,2735.6,3.6555]
[1739785752229,0.015,2735.7,2735.4,3.65568]
[1739785752915,4.47669,2736.1,2735.3,0.7882]
[1739785752916,0.8218,2736.1,2735.3,0.7882]
[1739785753119,0.8218,2736.1,2735.7,3.65526]
[1739785753316,0.015,2736.0,2735.7,3.65526]
[1739785754249,0.015,2736.0,2735.8,3.65513]
[1739785754609,0.015,2736.0,2735.7,3.65526]
[1739785755523,0.015,2736.3,2735.9,3.6551]
[1739785756135,4.42034,2736.7,2736.0,0.07609244]
[1739785756341,0.015,2736.5,2736.1,3.65477]
[1739785756649,0.015,2736.5,2735.9,3.65501]
[1739785756826,0.015,2736.5,2736.2,0.07602345]
[1739785757020,0.015,2736.5,2736.1,3.65482]
[1739785757021,0.45853,2736.5,2736.1,3.65482]
[1739785757509,0.45853,2736.5,2736.2,0.07602345]
[1739785757711,0.015,2736.5,2736.3,3.65449]
[1739785758140,0.015,2736.5,2736.1,3.65483]
[1739785758325,0.015,2736.5,2736.4,0.07602345]
[1739785758526,0.015,2736.5,2736.1,3.65483]
[1739785758764,0.015,2736.5,2736.4,0.07602345]
[1739785758953,3.6693,2736.5,2736.0,7.30992]
[1739785759126,0.015,2736.5,2736.2,3.6547]
[1739785759325,0.015,2736.5,2736.1,0.07602345]
[1739785759544,3.66937,2736.5,2735.8,4.47365]
[1739785759716,0.015,2736.2,2735.8,3.65515]
[1739785759919,3.66971,2736.2,2735.8,3.65515]